[Event "Titled Tuesday Blitz May 16 Early 2023"]
[White "Sai Han Thiha"]
[Black "Fernandez Hernandez, Gerardo"]
[WhiteFideId "13012290"]
[BlackFideId "2207400"]
[WhiteElo "1954"]
[BlackElo "2154"]
[Result "1-0"]
[Round "05"]
[TimeControl "180+2"]
[Date "2023.05.16"]
[WhiteClock "0:00:17"]
[BlackClock "0:00:00"]

1. d4 {[%clk 0:02:59]}  Nf6 {[%clk 0:02:59]} 2. Nf3 {[%clk 0:02:57]}  g6 {[%clk 0:02:58]} 3. c4 {[%clk 0:02:56]}  Bg7 {[%clk 0:02:58]} 4. Nc3 {[%clk 0:02:57]}  O-O {[%clk 0:02:59]} 5. e4 {[%clk 0:02:57]}  d6 {[%clk 0:02:59]} 6. Be2 {[%clk 0:02:57]}  h6 {[%clk 0:02:55]} 7. Be3 {[%clk 0:02:53]}  Ng4 {[%clk 0:02:53]} 8. Bd2 {[%clk 0:02:43]}  e5 {[%clk 0:02:46]} 9. d5 {[%clk 0:02:41]}  f5 {[%clk 0:02:36]} 10. O-O {[%clk 0:02:06]}  f4 {[%clk 0:02:31]} 11. Ne1 {[%clk 0:02:02]}  h5 {[%clk 0:02:25]} 12. Nd3 {[%clk 0:02:00]}  g5 {[%clk 0:02:16]} 13. h3 {[%clk 0:01:54]}  Nf6 {[%clk 0:02:08]} 14. Bxh5 {[%clk 0:01:54]}  Nxh5 {[%clk 0:02:06]} 15. Qxh5 {[%clk 0:01:53]}  Nd7 {[%clk 0:01:57]} 16. b4 {[%clk 0:01:45]}  b6 {[%clk 0:01:53]} 17. Rac1 {[%clk 0:01:38]}  a5 {[%clk 0:01:50]} 18. a3 {[%clk 0:01:36]}  axb4 {[%clk 0:01:45]} 19. axb4 {[%clk 0:01:37]}  Ra3 {[%clk 0:01:43]} 20. c5 {[%clk 0:01:34]}  bxc5 {[%clk 0:01:38]} 21. bxc5 {[%clk 0:01:35]}  Ba6 {[%clk 0:01:35]} 22. Qf3 {[%clk 0:01:01]}  Bxd3 {[%clk 0:01:25]} 23. Qxd3 {[%clk 0:01:02]}  Nxc5 {[%clk 0:01:25]} 24. Qc4 {[%clk 0:01:02]}  g4 {[%clk 0:01:10]} 25. hxg4 {[%clk 0:01:00]}  f3 {[%clk 0:00:49]} 26. Nb5 {[%clk 0:00:53]}  fxg2 {[%clk 0:00:40]} 27. Kxg2 {[%clk 0:00:48]}  Qh4 {[%clk 0:00:31]} 28. f3 {[%clk 0:00:48]}  Ra4 {[%clk 0:00:20]} 29. Qe2 {[%clk 0:00:46]}  Bh6 {[%clk 0:00:13]} 30. Rh1 {[%clk 0:00:44]}  Qf6 {[%clk 0:00:12]} 31. Rxh6 {[%clk 0:00:44]}  Qg7 {[%clk 0:00:08]} 32. Rch1 {[%clk 0:00:41]}  Ra2 {[%clk 0:00:08]} 33. Nxc7 {[%clk 0:00:35]}  Nb3 {[%clk 0:00:04]} 34. Ne6 {[%clk 0:00:30]}  Rxd2 {[%clk 0:00:04]} 35. Qxd2 {[%clk 0:00:29]}  Nxd2 {[%clk 0:00:05]} 36. Nxg7 {[%clk 0:00:29]}  Kxg7 {[%clk 0:00:05]} 37. Rxd6 {[%clk 0:00:27]}  Nxf3 {[%clk 0:00:04]} 38. Kg3 {[%clk 0:00:21]}  Ng5 {[%clk 0:00:03]} 39. Rd7+ {[%clk 0:00:20]}  Kg6 {[%clk 0:00:03]} 40. Re1 {[%clk 0:00:21]}  Rf4 {[%clk 0:00:02]} 41. Kg2 {[%clk 0:00:21]}  Nxe4 {[%clk 0:00:01]} 42. Re7 {[%clk 0:00:19]}  Rxg4+ {[%clk 0:00:02]} 43. Kf3 {[%clk 0:00:19]}  Rf4+ {[%clk 0:00:02]} 44. Ke3 {[%clk 0:00:20]}  Nc3 {[%clk 0:00:02]} 45. Rxe5 {[%clk 0:00:18]}  Nb5 {[%clk 0:00:00]} 46. Kxf4 {[%clk 0:00:17]} 1-0


[Site "https://www.chess.com"]

[Event "Titled Tuesday Blitz May 16 Early 2023"]
[White "Fernandez Garcia, Gumersindo"]
[Black "Ciuffoletti, Paolo"]
[WhiteFideId "24516740"]
[BlackFideId "807630"]
[WhiteElo "2093"]
[BlackElo "2143"]
[Result "1-0"]
[Round "05"]
[TimeControl "180+2"]
[Date "2023.05.16"]
[WhiteClock "0:00:22"]
[BlackClock "0:00:00"]

1. d4 {[%clk 0:03:00]}  d5 {[%clk 0:02:59]} 2. e4 {[%clk 0:02:43]}  dxe4 {[%clk 0:02:58]} 3. Nc3 {[%clk 0:02:44]}  Nf6 {[%clk 0:02:56]} 4. Bg5 {[%clk 0:02:43]}  Bf5 {[%clk 0:02:44]} 5. Nge2 {[%clk 0:02:32]}  h6 {[%clk 0:02:22]} 6. Bxf6 {[%clk 0:02:32]}  exf6 {[%clk 0:02:23]} 7. Ng3 {[%clk 0:02:32]}  Bg6 {[%clk 0:02:22]} 8. Ncxe4 {[%clk 0:02:30]}  f5 {[%clk 0:02:04]} 9. Nc5 {[%clk 0:02:19]}  b6 {[%clk 0:01:35]} 10. Nb3 {[%clk 0:02:04]}  Be7 {[%clk 0:01:26]} 11. Bd3 {[%clk 0:01:59]}  O-O {[%clk 0:01:23]} 12. O-O {[%clk 0:01:55]}  f4 {[%clk 0:01:21]} 13. Qf3 {[%clk 0:01:50]}  Bxd3 {[%clk 0:01:01]} 14. cxd3 {[%clk 0:01:51]}  Nd7 {[%clk 0:00:39]} 15. Qxf4 {[%clk 0:01:50]}  Nf6 {[%clk 0:00:38]} 16. Ne4 {[%clk 0:01:46]}  Nd5 {[%clk 0:00:37]} 17. Qf3 {[%clk 0:01:46]}  Re8 {[%clk 0:00:34]} 18. Rac1 {[%clk 0:01:46]}  Bf8 {[%clk 0:00:33]} 19. h3 {[%clk 0:01:45]}  Rc8 {[%clk 0:00:32]} 20. Nc3 {[%clk 0:01:44]}  Nb4 {[%clk 0:00:29]} 21. a3 {[%clk 0:01:43]}  Na6 {[%clk 0:00:27]} 22. Qb7 {[%clk 0:01:43]}  Nb8 {[%clk 0:00:22]} 23. Qxa7 {[%clk 0:01:40]}  Nc6 {[%clk 0:00:21]} 24. Qb7 {[%clk 0:01:40]}  Nxd4 {[%clk 0:00:21]} 25. Nxd4 {[%clk 0:01:40]}  Qxd4 {[%clk 0:00:21]} 26. Qd5 {[%clk 0:01:41]}  Bc5 {[%clk 0:00:18]} 27. Qxd4 {[%clk 0:01:40]}  Bxd4 {[%clk 0:00:18]} 28. Rfe1 {[%clk 0:01:40]}  Bxc3 {[%clk 0:00:17]} 29. Rxe8+ {[%clk 0:01:35]}  Rxe8 {[%clk 0:00:16]} 30. Rxc3 {[%clk 0:01:36]}  Re1+ {[%clk 0:00:14]} 31. Kh2 {[%clk 0:01:37]}  c5 {[%clk 0:00:15]} 32. Rb3 {[%clk 0:01:34]}  Re6 {[%clk 0:00:13]} 33. Kg3 {[%clk 0:01:33]}  Kf8 {[%clk 0:00:12]} 34. Kf3 {[%clk 0:01:33]}  Ke7 {[%clk 0:00:12]} 35. g3 {[%clk 0:01:34]}  Kd7 {[%clk 0:00:12]} 36. d4 {[%clk 0:01:28]}  cxd4 {[%clk 0:00:09]} 37. Rd3 {[%clk 0:01:29]}  Rf6+ {[%clk 0:00:06]} 38. Ke2 {[%clk 0:01:29]}  Rd6 {[%clk 0:00:06]} 39. Rb3 {[%clk 0:01:27]}  Kc6 {[%clk 0:00:06]} 40. Kd3 {[%clk 0:01:27]}  b5 {[%clk 0:00:04]} 41. a4 {[%clk 0:01:23]}  bxa4 {[%clk 0:00:03]} 42. Rb4 {[%clk 0:01:24]}  Kc5 {[%clk 0:00:03]} 43. Rxa4 {[%clk 0:01:24]}  Rb6 {[%clk 0:00:03]} 44. b4+ {[%clk 0:01:20]}  Rxb4 {[%clk 0:00:02]} 45. Rxb4 {[%clk 0:01:20]}  Kxb4 {[%clk 0:00:03]} 46. Kxd4 {[%clk 0:01:21]}  Kb3 {[%clk 0:00:03]} 47. f4 {[%clk 0:01:14]}  Kc2 {[%clk 0:00:02]} 48. g4 {[%clk 0:00:40]}  Kd2 {[%clk 0:00:02]} 49. h4 {[%clk 0:00:40]}  Ke2 {[%clk 0:00:02]} 50. Ke4 {[%clk 0:00:40]}  Kf2 {[%clk 0:00:03]} 51. h5 {[%clk 0:00:40]}  Kg3 {[%clk 0:00:03]} 52. g5 {[%clk 0:00:29]}  Kh4 {[%clk 0:00:02]} 53. g6 {[%clk 0:00:22]}  f6 {[%clk 0:00:01]} 54. f5 {[%clk 0:00:20]}  Kxh5 {[%clk 0:00:01]} 55. Kd5 {[%clk 0:00:21]}  Kg5 {[%clk 0:00:01]} 56. Ke6 {[%clk 0:00:21]}  h5 {[%clk 0:00:01]} 57. Kf7 {[%clk 0:00:22]}  h4 {[%clk 0:00:02]} 58. Kxg7 {[%clk 0:00:22]}  h3 {[%clk 0:00:02]} 59. Kf7 {[%clk 0:00:23]}  h2 {[%clk 0:00:03]} 60. g7 {[%clk 0:00:23]}  h1=Q {[%clk 0:00:03]} 61. g8=Q+ {[%clk 0:00:24]}  Kxf5 {[%clk 0:00:03]} 62. Qg6+ {[%clk 0:00:24]}  Ke5 {[%clk 0:00:03]} 63. Qxf6+ {[%clk 0:00:24]}  Kd5 {[%clk 0:00:03]} 64. Qd8+ {[%clk 0:00:24]}  Ke5 {[%clk 0:00:03]} 65. Qc7+ {[%clk 0:00:24]}  Kf5 {[%clk 0:00:03]} 66. Qc8+ {[%clk 0:00:23]}  Ke5 {[%clk 0:00:03]} 67. Qb8+ {[%clk 0:00:24]}  Kf5 {[%clk 0:00:02]} 68. Qb5+ {[%clk 0:00:24]}  Kg4 {[%clk 0:00:01]} 69. Qd7+ {[%clk 0:00:23]}  Kg5 {[%clk 0:00:01]} 70. Qd2+ {[%clk 0:00:22]}  Kg4 {[%clk 0:00:00]} 71. Qe2+ {[%clk 0:00:22]} 1-0


[Site "https://www.chess.com"]

[Event "Titled Tuesday Blitz May 16 Early 2023"]
[White "Benaddi, Mouhcine"]
[Black "Li, Hui"]
[WhiteFideId "9001050"]
[BlackFideId "15400310"]
[WhiteElo "2036"]
[BlackElo "1966"]
[Result "0-1"]
[Round "05"]
[TimeControl "180+2"]
[Date "2023.05.16"]
[WhiteClock "0:00:00"]
[BlackClock "0:00:05"]

1. Nf3 {[%clk 0:03:00]}  d5 {[%clk 0:02:52]} 2. g3 {[%clk 0:03:01]}  Bg4 {[%clk 0:02:51]} 3. Bg2 {[%clk 0:02:57]}  Nd7 {[%clk 0:02:51]} 4. d4 {[%clk 0:02:54]}  c6 {[%clk 0:02:51]} 5. O-O {[%clk 0:02:45]}  Ngf6 {[%clk 0:02:51]} 6. h3 {[%clk 0:02:41]}  Bh5 {[%clk 0:02:47]} 7. c4 {[%clk 0:02:39]}  e6 {[%clk 0:02:47]} 8. cxd5 {[%clk 0:02:37]}  exd5 {[%clk 0:02:48]} 9. Qb3 {[%clk 0:02:34]}  Qb6 {[%clk 0:02:47]} 10. Qe3+ {[%clk 0:02:33]}  Be7 {[%clk 0:02:44]} 11. Nh4 {[%clk 0:02:29]}  Bg6 {[%clk 0:02:37]} 12. Nc3 {[%clk 0:02:26]}  Qd8 {[%clk 0:02:24]} 13. b4 {[%clk 0:02:22]}  a6 {[%clk 0:02:21]} 14. a4 {[%clk 0:02:18]}  O-O {[%clk 0:02:20]} 15. Nxg6 {[%clk 0:02:15]}  hxg6 {[%clk 0:02:20]} 16. Rb1 {[%clk 0:02:12]}  Re8 {[%clk 0:02:19]} 17. Qd3 {[%clk 0:02:08]}  Bd6 {[%clk 0:02:15]} 18. Bg5 {[%clk 0:02:04]}  Qe7 {[%clk 0:02:06]} 19. b5 {[%clk 0:02:01]}  axb5 {[%clk 0:02:05]} 20. axb5 {[%clk 0:02:01]}  Qe6 {[%clk 0:01:56]} 21. h4 {[%clk 0:01:55]}  Ra3 {[%clk 0:01:43]} 22. bxc6 {[%clk 0:01:51]}  bxc6 {[%clk 0:01:44]} 23. Rb7 {[%clk 0:01:48]}  Rb8 {[%clk 0:01:23]} 24. Rxb8+ {[%clk 0:01:45]}  Nxb8 {[%clk 0:01:18]} 25. Bc1 {[%clk 0:01:42]}  Ra8 {[%clk 0:01:11]} 26. e4 {[%clk 0:01:37]}  dxe4 {[%clk 0:01:10]} 27. Nxe4 {[%clk 0:01:37]}  Nxe4 {[%clk 0:01:06]} 28. Bxe4 {[%clk 0:01:38]}  Ra1 {[%clk 0:01:02]} 29. Bg2 {[%clk 0:01:32]}  Nd7 {[%clk 0:00:29]} 30. Qc3 {[%clk 0:01:29]}  Ra6 {[%clk 0:00:25]} 31. Re1 {[%clk 0:01:24]}  Qa2 {[%clk 0:00:19]} 32. d5 {[%clk 0:01:20]}  cxd5 {[%clk 0:00:18]} 33. Qc8+ {[%clk 0:01:17]}  Nf8 {[%clk 0:00:16]} 34. Bxd5 {[%clk 0:01:16]}  Ra8 {[%clk 0:00:16]} 35. Qxa8 {[%clk 0:01:11]}  Qb1 {[%clk 0:00:13]} 36. Bd2 {[%clk 0:01:05]}  Qb2 {[%clk 0:00:12]} 37. Bg5 {[%clk 0:00:55]}  Qd4 {[%clk 0:00:11]} 38. Re8 {[%clk 0:00:47]}  Kh7 {[%clk 0:00:07]} 39. Rxf8 {[%clk 0:00:45]}  Bxf8 {[%clk 0:00:07]} 40. Qxf8 {[%clk 0:00:41]}  Qxd5 {[%clk 0:00:06]} 41. Qa8 {[%clk 0:00:00]}  Qxa8 {[%clk 0:00:05]} 0-1


[Site "https://www.chess.com"]

[Event "Titled Tuesday Blitz May 16 Early 2023"]
[White "Srebrnic, Ana"]
[Black "Clawitter, Craig"]
[WhiteFideId "14603314"]
[BlackFideId "2023105"]
[WhiteElo "2181"]
[BlackElo "2258"]
[Result "0-1"]
[Round "05"]
[TimeControl "180+2"]
[Date "2023.05.16"]
[WhiteClock "0:00:00"]
[BlackClock "0:00:03"]

1. e4 {[%clk 0:03:00]}  e6 {[%clk 0:02:56]} 2. d4 {[%clk 0:02:55]}  d5 {[%clk 0:02:57]} 3. Nd2 {[%clk 0:02:54]}  Be7 {[%clk 0:02:57]} 4. Ngf3 {[%clk 0:02:53]}  Nf6 {[%clk 0:02:50]} 5. Bd3 {[%clk 0:02:44]}  c5 {[%clk 0:02:48]} 6. c3 {[%clk 0:02:43]}  cxd4 {[%clk 0:02:19]} 7. Nxd4 {[%clk 0:02:33]}  Nc6 {[%clk 0:02:15]} 8. Bb5 {[%clk 0:02:04]}  Bd7 {[%clk 0:01:39]} 9. Bxc6 {[%clk 0:01:34]}  Bxc6 {[%clk 0:01:37]} 10. e5 {[%clk 0:01:35]}  Nd7 {[%clk 0:01:31]} 11. f4 {[%clk 0:01:34]}  O-O {[%clk 0:01:27]} 12. O-O {[%clk 0:01:32]}  Nc5 {[%clk 0:01:18]} 13. f5 {[%clk 0:01:06]}  Nd3 {[%clk 0:01:07]} 14. fxe6 {[%clk 0:00:49]}  fxe6 {[%clk 0:00:51]} 15. Nxe6 {[%clk 0:00:43]}  Qb6+ {[%clk 0:00:23]} 16. Nd4 {[%clk 0:00:31]}  Rxf1+ {[%clk 0:00:11]} 17. Qxf1 {[%clk 0:00:30]}  Nxe5 {[%clk 0:00:12]} 18. Kh1 {[%clk 0:00:22]}  Rf8 {[%clk 0:00:12]} 19. Qe2 {[%clk 0:00:18]}  Ng6 {[%clk 0:00:08]} 20. N2f3 {[%clk 0:00:17]}  Bf6 {[%clk 0:00:06]} 21. Bg5 {[%clk 0:00:14]}  Bxg5 {[%clk 0:00:05]} 22. Nxg5 {[%clk 0:00:14]}  Nf4 {[%clk 0:00:06]} 23. Qd2 {[%clk 0:00:08]}  h6 {[%clk 0:00:05]} 24. Ngf3 {[%clk 0:00:08]}  Qc7 {[%clk 0:00:03]} 25. Re1 {[%clk 0:00:08]}  Qf7 {[%clk 0:00:03]} 26. Nxc6 {[%clk 0:00:07]}  bxc6 {[%clk 0:00:04]} 27. Nd4 {[%clk 0:00:05]}  Qf6 {[%clk 0:00:04]} 28. h3 {[%clk 0:00:03]}  Qg5 {[%clk 0:00:03]} 29. Rg1 {[%clk 0:00:00]}  Nxh3 {[%clk 0:00:03]} 0-1


[Site "https://www.chess.com"]

[Event "Titled Tuesday Blitz May 16 Early 2023"]
[White "Muhammed, Shuaau"]
[Black "Kriti Mayur Patel"]
[WhiteFideId "16700406"]
[BlackFideId "35061780"]
[WhiteElo "1922"]
[BlackElo "1306"]
[Result "0-1"]
[Round "05"]
[TimeControl "180+2"]
[Date "2023.05.16"]
[WhiteClock "0:00:05"]
[BlackClock "0:00:22"]

1. e4 {[%clk 0:03:00]}  e5 {[%clk 0:02:58]} 2. Nc3 {[%clk 0:02:58]}  Nf6 {[%clk 0:02:58]} 3. Nf3 {[%clk 0:02:57]}  Nc6 {[%clk 0:02:56]} 4. Bb5 {[%clk 0:02:53]}  Bb4 {[%clk 0:02:55]} 5. O-O {[%clk 0:02:52]}  O-O {[%clk 0:02:55]} 6. Bxc6 {[%clk 0:02:49]}  dxc6 {[%clk 0:02:51]} 7. d3 {[%clk 0:02:48]}  Bg4 {[%clk 0:02:51]} 8. h3 {[%clk 0:02:47]}  Bxf3 {[%clk 0:02:38]} 9. Qxf3 {[%clk 0:02:48]}  Be7 {[%clk 0:02:38]} 10. Ne2 {[%clk 0:02:46]}  Qd6 {[%clk 0:02:32]} 11. Ng3 {[%clk 0:02:45]}  Qe6 {[%clk 0:02:31]} 12. Nf5 {[%clk 0:02:43]}  Bc5 {[%clk 0:02:26]} 13. Bh6 {[%clk 0:02:32]}  Ne8 {[%clk 0:02:02]} 14. Be3 {[%clk 0:02:03]}  Bb6 {[%clk 0:01:56]} 15. Qg4 {[%clk 0:01:55]}  Kh8 {[%clk 0:01:46]} 16. Bxb6 {[%clk 0:01:51]}  axb6 {[%clk 0:01:46]} 17. f4 {[%clk 0:01:44]}  Rxa2 {[%clk 0:01:43]} 18. Rxa2 {[%clk 0:01:42]}  Qxa2 {[%clk 0:01:44]} 19. fxe5 {[%clk 0:01:38]}  Qxb2 {[%clk 0:01:43]} 20. d4 {[%clk 0:01:25]}  g6 {[%clk 0:01:31]} 21. Nh6 {[%clk 0:01:20]}  Qxd4+ {[%clk 0:01:31]} 22. Kh1 {[%clk 0:01:17]}  Kg7 {[%clk 0:01:31]} 23. Qf4 {[%clk 0:01:16]}  Qc4 {[%clk 0:01:25]} 24. Nf5+ {[%clk 0:01:11]}  gxf5 {[%clk 0:01:11]} 25. Qg5+ {[%clk 0:00:45]}  Kh8 {[%clk 0:01:08]} 26. Rf4 {[%clk 0:00:45]}  Rg8 {[%clk 0:00:54]} 27. Qh5 {[%clk 0:00:44]}  Qe6 {[%clk 0:00:44]} 28. Rxf5 {[%clk 0:00:40]}  Qg6 {[%clk 0:00:43]} 29. Qf3 {[%clk 0:00:40]}  Rg7 {[%clk 0:00:33]} 30. c4 {[%clk 0:00:35]}  b5 {[%clk 0:00:33]} 31. c5 {[%clk 0:00:34]}  b4 {[%clk 0:00:33]} 32. g4 {[%clk 0:00:33]}  Qh6 {[%clk 0:00:30]} 33. Kh2 {[%clk 0:00:30]}  Qe6 {[%clk 0:00:28]} 34. Kg3 {[%clk 0:00:26]}  b3 {[%clk 0:00:28]} 35. Kh4 {[%clk 0:00:20]}  b2 {[%clk 0:00:26]} 36. Qd3 {[%clk 0:00:19]}  Qh6+ {[%clk 0:00:21]} 37. Kg3 {[%clk 0:00:18]}  Qc1 {[%clk 0:00:20]} 38. Qd8 {[%clk 0:00:10]}  Qe1+ {[%clk 0:00:19]} 39. Kg2 {[%clk 0:00:10]}  Rg8 {[%clk 0:00:19]} 40. e6 {[%clk 0:00:10]}  b1=Q {[%clk 0:00:19]} 41. Qd4+ {[%clk 0:00:08]}  Ng7 {[%clk 0:00:17]} 42. exf7 {[%clk 0:00:08]}  Qc2+ {[%clk 0:00:17]} 43. Rf2 {[%clk 0:00:06]}  Qcxf2+ {[%clk 0:00:17]} 44. Qxf2 {[%clk 0:00:06]}  Qxf2+ {[%clk 0:00:17]} 45. Kxf2 {[%clk 0:00:07]}  Rf8 {[%clk 0:00:18]} 46. Ke3 {[%clk 0:00:07]}  Rxf7 {[%clk 0:00:19]} 47. h4 {[%clk 0:00:08]}  Re7 {[%clk 0:00:20]} 48. h5 {[%clk 0:00:07]}  Ne6 {[%clk 0:00:21]} 49. e5 {[%clk 0:00:07]}  Kg7 {[%clk 0:00:22]} 50. Ke4 {[%clk 0:00:06]}  Nxc5+ {[%clk 0:00:22]} 51. Kf5 {[%clk 0:00:07]}  Nd7 {[%clk 0:00:22]} 52. g5 {[%clk 0:00:07]}  Nxe5 {[%clk 0:00:23]} 53. h6+ {[%clk 0:00:07]}  Kf7 {[%clk 0:00:23]} 54. g6+ {[%clk 0:00:06]}  hxg6+ {[%clk 0:00:22]} 55. Kg5 {[%clk 0:00:05]}  Kg8 {[%clk 0:00:22]} 0-1


[Site "https://www.chess.com"]

[Event "Titled Tuesday Blitz May 16 Early 2023"]
[White "Grabinsky, Vladimir"]
[Black "Vargas Rodriguez, Wilver"]
[WhiteFideId "14107074"]
[BlackFideId "3509672"]
[WhiteElo "2027"]
[BlackElo "2246"]
[Result "1-0"]
[Round "05"]
[TimeControl "180+2"]
[Date "2023.05.16"]
[WhiteClock "0:00:16"]
[BlackClock "0:00:00"]

1. e4 {[%clk 0:03:00]}  c5 {[%clk 0:02:59]} 2. b4 {[%clk 0:02:59]}  b6 {[%clk 0:02:52]} 3. bxc5 {[%clk 0:02:58]}  bxc5 {[%clk 0:02:52]} 4. Nf3 {[%clk 0:02:58]}  Nc6 {[%clk 0:02:44]} 5. Bc4 {[%clk 0:02:57]}  e6 {[%clk 0:02:36]} 6. O-O {[%clk 0:02:56]}  Be7 {[%clk 0:02:16]} 7. Nc3 {[%clk 0:02:46]}  d6 {[%clk 0:02:01]} 8. Re1 {[%clk 0:02:12]}  e5 {[%clk 0:01:52]} 9. d3 {[%clk 0:02:06]}  Nf6 {[%clk 0:01:51]} 10. Bg5 {[%clk 0:02:06]}  Be6 {[%clk 0:01:46]} 11. Bxf6 {[%clk 0:02:04]}  Bxf6 {[%clk 0:01:44]} 12. Bd5 {[%clk 0:01:48]}  Qd7 {[%clk 0:01:31]} 13. Rb1 {[%clk 0:01:46]}  O-O {[%clk 0:01:29]} 14. Nd2 {[%clk 0:01:45]}  Rab8 {[%clk 0:01:11]} 15. Nc4 {[%clk 0:01:42]}  Nd4 {[%clk 0:01:00]} 16. Qd2 {[%clk 0:01:07]}  Bg4 {[%clk 0:00:38]} 17. h3 {[%clk 0:00:49]}  Bxh3 {[%clk 0:00:36]} 18. Ne2 {[%clk 0:00:22]}  Qg4 {[%clk 0:00:26]} 19. Ng3 {[%clk 0:00:20]}  Rxb1 {[%clk 0:00:08]} 20. Rxb1 {[%clk 0:00:21]}  h5 {[%clk 0:00:04]} 21. c3 {[%clk 0:00:20]}  h4 {[%clk 0:00:03]} 22. cxd4 {[%clk 0:00:19]}  hxg3 {[%clk 0:00:03]} 23. gxh3 {[%clk 0:00:18]}  gxf2+ {[%clk 0:00:03]} 24. Kxf2 {[%clk 0:00:19]}  Bh4+ {[%clk 0:00:02]} 25. Kf1 {[%clk 0:00:18]}  Qf3+ {[%clk 0:00:00]} 26. Kg1 {[%clk 0:00:16]} 1-0


[Site "https://www.chess.com"]

[Event "Titled Tuesday Blitz May 16 Early 2023"]
[White "ChawitAp"]
[Black "Joubert, Dantelle"]
[BlackFideId "14310813"]
[WhiteElo "2224"]
[BlackElo "1507"]
[Result "0-1"]
[Round "05"]
[TimeControl "180+2"]
[Date "2023.05.16"]
[WhiteClock "0:00:00"]
[BlackClock "0:00:06"]

1. d4 {[%clk 0:03:00]}  d5 {[%clk 0:02:58]} 2. Nf3 {[%clk 0:02:59]}  Nf6 {[%clk 0:02:57]} 3. c3 {[%clk 0:02:52]}  c5 {[%clk 0:02:52]} 4. dxc5 {[%clk 0:02:51]}  Nc6 {[%clk 0:02:49]} 5. Bf4 {[%clk 0:02:49]}  Bg4 {[%clk 0:02:46]} 6. Nbd2 {[%clk 0:02:41]}  a5 {[%clk 0:02:33]} 7. Qa4 {[%clk 0:02:36]}  Qd7 {[%clk 0:02:28]} 8. e3 {[%clk 0:02:26]}  e6 {[%clk 0:02:21]} 9. Bb5 {[%clk 0:02:21]}  Bxf3 {[%clk 0:01:41]} 10. Nxf3 {[%clk 0:02:22]}  Ne4 {[%clk 0:00:43]} 11. Bd6 {[%clk 0:01:17]}  Bxd6 {[%clk 0:00:28]} 12. cxd6 {[%clk 0:01:15]}  O-O {[%clk 0:00:26]} 13. Ne5 {[%clk 0:00:43]}  Qxd6 {[%clk 0:00:25]} 14. Nxc6 {[%clk 0:00:43]}  bxc6 {[%clk 0:00:24]} 15. Bxc6 {[%clk 0:00:41]}  Rab8 {[%clk 0:00:22]} 16. Bb5 {[%clk 0:00:14]}  Qb6 {[%clk 0:00:19]} 17. c4 {[%clk 0:00:07]}  dxc4 {[%clk 0:00:17]} 18. Bxc4 {[%clk 0:00:07]}  Qxb2 {[%clk 0:00:14]} 19. O-O {[%clk 0:00:07]}  Nd2 {[%clk 0:00:11]} 20. Rfd1 {[%clk 0:00:05]}  Rb4 {[%clk 0:00:09]} 21. Qxa5 {[%clk 0:00:03]}  Nxc4 {[%clk 0:00:09]} 22. Qc5 {[%clk 0:00:03]}  g6 {[%clk 0:00:07]} 23. h4 {[%clk 0:00:02]}  Na3 {[%clk 0:00:06]} 24. h5 {[%clk 0:00:00]}  Rb5 {[%clk 0:00:06]} 0-1


[Site "https://www.chess.com"]

[Event "Titled Tuesday Blitz May 16 Early 2023"]
[White "Quirke, Jeffrey"]
[Black "Aung Thant Zin"]
[WhiteFideId "2013029"]
[BlackFideId "13000063"]
[WhiteElo "2223"]
[BlackElo "2278"]
[Result "1-0"]
[Round "05"]
[TimeControl "180+2"]
[Date "2023.05.16"]
[WhiteClock "0:00:01"]
[BlackClock "0:01:51"]

1. e4 {[%clk 0:02:54]}  c5 {[%clk 0:02:58]} 2. Nc3 {[%clk 0:02:53]}  Nc6 {[%clk 0:02:57]} 3. f4 {[%clk 0:02:53]}  e6 {[%clk 0:02:56]} 4. Nf3 {[%clk 0:02:51]}  Nf6 {[%clk 0:02:56]} 5. e5 {[%clk 0:02:46]}  Nd5 {[%clk 0:02:54]} 6. Ne4 {[%clk 0:02:35]}  d6 {[%clk 0:02:52]} 7. d3 {[%clk 0:02:14]}  dxe5 {[%clk 0:02:50]} 8. fxe5 {[%clk 0:02:14]}  Be7 {[%clk 0:02:50]} 9. a3 {[%clk 0:02:06]}  O-O {[%clk 0:02:48]} 10. c4 {[%clk 0:02:05]}  Nc7 {[%clk 0:02:47]} 11. Be2 {[%clk 0:01:56]}  b6 {[%clk 0:02:45]} 12. O-O {[%clk 0:01:55]}  Bb7 {[%clk 0:02:45]} 13. Bf4 {[%clk 0:01:49]}  Nd4 {[%clk 0:02:45]} 14. Nd6 {[%clk 0:01:46]}  Nxe2+ {[%clk 0:02:39]} 15. Qxe2 {[%clk 0:01:45]}  Bxd6 {[%clk 0:02:39]} 16. exd6 {[%clk 0:01:44]}  Ne8 {[%clk 0:02:40]} 17. Ng5 {[%clk 0:00:52]}  Qd7 {[%clk 0:02:30]} 18. Qe5 {[%clk 0:00:19]}  h6 {[%clk 0:02:25]} 19. Nf3 {[%clk 0:00:10]}  f6 {[%clk 0:02:23]} 20. Qe3 {[%clk 0:00:09]}  e5 {[%clk 0:02:23]} 21. Bxh6 {[%clk 0:00:09]}  Nxd6 {[%clk 0:02:19]} 22. Bxg7 {[%clk 0:00:07]}  Qxg7 {[%clk 0:02:16]} 23. Nh4 {[%clk 0:00:07]}  Qg5 {[%clk 0:02:12]} 24. Qxg5+ {[%clk 0:00:05]}  fxg5 {[%clk 0:02:12]} 25. Ng6 {[%clk 0:00:06]}  Rf3 {[%clk 0:02:11]} 26. gxf3 {[%clk 0:00:03]}  Kg7 {[%clk 0:02:11]} 27. Nxe5 {[%clk 0:00:03]}  Nf5 {[%clk 0:02:10]} 28. Ng4 {[%clk 0:00:03]}  Nd4 {[%clk 0:02:10]} 29. Rae1 {[%clk 0:00:03]}  Nxf3+ {[%clk 0:02:05]} 30. Rxf3 {[%clk 0:00:03]}  Bxf3 {[%clk 0:02:05]} 31. Ne5 {[%clk 0:00:03]}  Bh5 {[%clk 0:02:02]} 32. Kf2 {[%clk 0:00:03]}  Rf8+ {[%clk 0:02:01]} 33. Kg3 {[%clk 0:00:03]}  Re8 {[%clk 0:02:01]} 34. Nf3 {[%clk 0:00:03]}  Rd8 {[%clk 0:01:57]} 35. Re3 {[%clk 0:00:01]}  Bg6 {[%clk 0:01:55]} 36. Nxg5 {[%clk 0:00:01]}  Bxd3 {[%clk 0:01:51]} 37. Ne6+ {[%clk 0:00:01]} 1-0


[Site "https://www.chess.com"]

[Event "Titled Tuesday Blitz May 16 Early 2023"]
[White "Ankudinova, Yelena"]
[Black "White, John S."]
[WhiteFideId "13702114"]
[BlackFideId "2502348"]
[WhiteElo "1937"]
[BlackElo "2007"]
[Result "1-0"]
[Round "05"]
[TimeControl "180+2"]
[Date "2023.05.16"]
[WhiteClock "0:01:56"]
[BlackClock "0:01:03"]

1. Nf3 {[%clk 0:03:00]}  e6 {[%clk 0:03:00]} 2. c4 {[%clk 0:03:00]}  d5 {[%clk 0:03:00]} 3. cxd5 {[%clk 0:03:00]}  exd5 {[%clk 0:02:59]} 4. d4 {[%clk 0:03:00]}  Nf6 {[%clk 0:03:00]} 5. Nc3 {[%clk 0:03:00]}  Nc6 {[%clk 0:02:54]} 6. Bg5 {[%clk 0:02:59]}  Be7 {[%clk 0:02:53]} 7. e3 {[%clk 0:02:58]}  h6 {[%clk 0:02:53]} 8. Bxf6 {[%clk 0:02:55]}  Bxf6 {[%clk 0:02:53]} 9. Be2 {[%clk 0:02:54]}  O-O {[%clk 0:02:52]} 10. O-O {[%clk 0:02:54]}  Bg4 {[%clk 0:02:47]} 11. a3 {[%clk 0:02:51]}  Re8 {[%clk 0:02:40]} 12. b4 {[%clk 0:02:47]}  a5 {[%clk 0:02:40]} 13. b5 {[%clk 0:02:46]}  Ne7 {[%clk 0:02:37]} 14. a4 {[%clk 0:02:39]}  Ng6 {[%clk 0:02:25]} 15. Qb3 {[%clk 0:02:38]}  Be6 {[%clk 0:02:22]} 16. Rac1 {[%clk 0:02:36]}  Qd6 {[%clk 0:02:14]} 17. Bd3 {[%clk 0:02:35]}  Nh4 {[%clk 0:02:07]} 18. Nd2 {[%clk 0:02:24]}  b6 {[%clk 0:01:51]} 19. Ne2 {[%clk 0:02:20]}  Nf5 {[%clk 0:01:27]} 20. Qc2 {[%clk 0:02:17]}  Rec8 {[%clk 0:01:25]} 21. Bxf5 {[%clk 0:02:16]}  Bxf5 {[%clk 0:01:25]} 22. Qxf5 {[%clk 0:02:16]}  Qb4 {[%clk 0:01:24]} 23. Nc3 {[%clk 0:02:13]}  c5 {[%clk 0:01:19]} 24. Nxd5 {[%clk 0:01:58]}  Qxd2 {[%clk 0:01:14]} 25. Nxb6 {[%clk 0:01:57]}  Rab8 {[%clk 0:01:03]} 26. Nxc8 {[%clk 0:01:56]} 1-0


[Site "https://www.chess.com"]